bitfinex-derivatives/quotes_ETHF0:USTF0_20250330
["timestamp","ask_amount","ask_price","bid_price","bid_amount"]
[1743315424914,2.55418,1835.4,1835.3,9.6117]
[1743315425918,2.55418,1835.4,1835.3,3.9342]
[1743315426114,2.55418,1835.4,1835.3,7.3822]
[1743315426418,2.55418,1835.4,1835.3,8.799]
[1743315427010,1.08996,1835.5,1835.3,8.799]
[1743315427208,1.08996,1835.5,1835.4,2.1633]
[1743315428103,0.00817171,1835.7,1835.4,2.1633]
[1743315428309,0.00817171,1835.7,1835.6,4.29766]
[1743315428513,0.00817171,1835.7,1835.6,7.74566]
[1743315428816,0.00817171,1835.7,1835.6,8.45146]
[1743315437025,1.08964,1836.0,1835.8,1.08972]
[1743315437219,2.58104,1836.0,1835.9,5.6098]
[1743315437921,2.58102,1836.0,1835.9,5.6098]
[1743315441229,1.4914,1836.0,1835.9,5.6098]
[1743315441730,2.58102,1836.0,1835.9,5.6098]
[1743315442933,2.58102,1836.0,1835.9,8.8176]
[1743315444421,2.58102,1836.0,1835.9,6.6558]
[1743315444630,2.58102,1836.0,1835.9,3.2078]
[1743315444833,2.58102,1836.0,1835.9,6.6558]
[1743315445030,2.58102,1836.0,1835.9,3.448]
[1743315445225,1.08968,1835.9,1835.8,0.00817171]
[1743315445434,1.08968,1835.9,1835.5,50.34]
[1743315445435,1.08986,1835.6,1835.5,50.34]
[1743315445728,1.08986,1835.6,1835.5,3.448]
[1743315446527,3.25916,1835.6,1835.5,3.448]
[1743315446728,1.08998,1835.4,1835.3,3.2078]
[1743315446922,1.08998,1835.4,1835.3,6.6558]
[1743315447124,1.08998,1835.4,1835.3,3.2078]
[1743315448335,1.09004,1835.3,1835.2,3.448]
[1743315454540,1.09016,1835.1,1835.0,3.2078]
[1743315454737,6.1551,1835.2,1834.6,6.6568]
[1743315455043,1.09032,1834.9,1834.6,8.0752]
[1743315455242,1.4964,1834.8,1834.7,2.1218]
[1743315455846,2.58674,1834.8,1834.7,2.1218]
[1743315456240,3.30054,1834.8,1834.7,2.1218]
[1743315458438,3.30054,1834.8,1834.6,3.2078]
[1743315458439,2.2102,1834.8,1834.6,3.2078]
[1743315458641,2.5113,1834.7,1834.6,3.2078]
[1743315460350,1.09058,1834.4,1834.3,3.463]
[1743315460942,1.09058,1834.4,1834.3,4.8493]
[1743315461151,1.09058,1834.4,1834.3,1.3863]
[1743315461351,1.09058,1834.4,1834.3,4.8483]
[1743315461547,1.83628,1834.4,1834.3,4.8483]
[1743315462357,1.83628,1834.4,1834.3,1.3863]
[1743315462650,1.09075,1834.1,1834.0,8.0914]
[1743315462851,1.09073,1834.2,1834.0,9.581]
[1743315463055,1.4637,1834.1,1834.0,9.581]
[1743315463357,2.55445,1834.1,1834.0,8.0914]
[1743315464668,2.55445,1834.1,1834.0,3.2078]
[1743315464970,1.4637,1834.1,1833.8,6.6748]
[1743315465164,1.09087,1833.9,1833.8,6.65998354]
[1743315465364,1.09087,1833.9,1833.8,3.45218354]
[1743315465769,1.09099,1833.7,1833.6,53.5668]
[1743315465973,1.09099,1833.7,1833.6,3.2078]
[1743315466960,1.09111,1833.5,1833.4,3.9031]
[1743315467169,1.09111,1833.5,1833.4,7.3691]
[1743315467567,1.09111,1833.5,1833.2,3.2078]
[1743315467568,1.09127,1833.3,1833.2,3.2078]
[1743315468167,1.09137,1833.1,1833.0,3.2078]
[1743315468365,1.09129,1833.2,1832.8,3.2078]
[1743315468570,1.3867,1833.0,1832.8,7.7733]
[1743315468763,1.3867,1833.0,1832.8,6.6818]
[1743315469065,1.3867,1833.0,1832.8,3.2078]
[1743315469270,1.3867,1833.0,1832.8,6.6818]
[1743315469474,2.47814,1833.0,1832.8,6.6818]
[1743315469669,1.3867,1833.0,1832.8,7.7733]
[1743315469865,1.3867,1833.0,1832.8,6.6818]
[1743315470263,1.3867,1833.0,1832.8,7.77331]
[1743315470468,3.21597171,1833.2,1832.8,6.6818]
[1743315470668,0.7061,1833.8,1833.1,3.2078]
[1743315470876,0.7061,1833.8,1832.9,10.43347142]
[1743315470877,1.383,1833.7,1833.2,6.7038]
[1743315471068,2.47401,1833.7,1833.4,4.29895]
[1743315471270,2.47401,1833.7,1833.4,3.2078]
[1743315471471,1.383,1833.6,1833.4,3.2078]
[1743315471772,2.47405,1833.6,1833.4,3.2078]
[1743315472072,2.0895,1833.6,1833.4,3.2078]
[1743315472273,1.383,1833.5,1833.4,3.2078]
[1743315472772,1.383,1833.5,1833.4,4.29897]
[1743315472974,1.383,1833.5,1833.4,3.2078]
[1743315473369,1.383,1833.5,1833.4,4.29897]
[1743315474869,1.383,1833.5,1833.4,4.99297]
[1743315475077,1.383,1833.5,1833.4,5.4069]
[1743315475276,2.47411,1833.5,1833.4,5.4069]
[1743315476172,1.383,1833.5,1833.4,5.4069]
[1743315476479,2.47411,1833.5,1833.4,5.4069]
[1743315476676,1.383,1833.5,1833.4,5.4069]
[1743315476875,2.47411,1833.5,1833.4,5.4069]
[1743315477276,1.383,1833.5,1833.4,5.4069]
[1743315477475,2.47411,1833.5,1833.4,3.2078]
[1743315477674,1.09117,1833.4,1833.3,0.00817171]
[1743315477875,2.49587,1833.4,1833.3,0.00817171]
[1743315478393,1.4047,1833.4,1833.3,1.45017171]
[1743315478883,2.49587,1833.4,1833.3,1.45017171]
[1743315479481,1.4047,1833.4,1833.3,1.45017171]
[1743315480877,2.49587,1833.4,1833.3,1.45017171]
[1743315481578,1.4047,1833.4,1833.3,1.45017171]
[1743315482084,2.49587,1833.4,1833.3,1.45017171]
[1743315482683,1.4047,1833.4,1833.3,1.45017171]
[1743315482882,1.4047,1833.4,1833.3,2.86517171]
[1743315483585,1.4047,1833.4,1833.3,3.95640171]
[1743315483887,1.4047,1833.4,1833.3,2.86517171]
[1743315484086,1.4924,1833.5,1833.3,3.95638171]
[1743315484285,1.4924,1833.5,1833.4,1.4312]
[1743315484486,3.21597171,1833.7,1833.4,2.52235]
[1743315484682,2.58346,1833.6,1833.5,3.496]
[1743315484887,2.58346,1833.6,1833.5,4.9272]
[1743315486290,1.4924,1833.6,1833.5,4.9272]
[1743315486494,2.58345,1833.6,1833.5,4.9272]
[1743315487093,1.4924,1833.6,1833.5,4.9272]
[1743315487284,1.4924,1833.6,1833.5,6.01831]
[1743315487481,1.4924,1833.6,1833.5,4.9272]
[1743315487681,1.4924,1833.6,1833.5,6.01831]
[1743315487989,0.00817171,1833.7,1833.6,1.09105]
[1743315488288,0.00817171,1833.7,1833.6,5.72495]
[1743315488985,0.00817171,1833.7,1833.6,1.4261]
[1743315489387,2.47746171,1833.7,1833.6,1.4261]
[1743315490086,1.38647171,1833.7,1833.6,1.4261]
[1743315490286,1.09105,1833.6,1833.4,4.29894]
[1743315490487,1.3783,1833.5,1833.4,5.72654]
[1743315490795,1.3783,1833.5,1833.4,9.22154]
[1743315492192,1.09920171,1833.7,1833.5,1.0911]
[1743315492393,1.09105,1833.6,1833.5,3.494]
[1743315492689,1.09111,1833.5,1833.4,3.494]
[1743315493292,1.78551,1833.5,1833.4,3.494]
[1743315493487,3.25231,1833.5,1833.4,3.494]
[1743315494691,3.25231,1833.5,1833.4,4.9888]
[1743315497789,3.25231,1833.5,1833.4,3.498]
[1743315498998,3.25231,1833.5,1833.4,4.9965]
[1743315500293,2.1612,1833.5,1833.4,4.9965]
[1743315500493,3.25231,1833.5,1833.4,4.9965]
[1743315501400,0.00817171,1833.7,1833.4,4.9965]
[1743315501703,0.00817171,1833.7,1833.6,4.29885]
[1743315502090,0.00817171,1833.7,1833.6,3.2078]
[1743315502395,0.00817171,1833.7,1833.6,4.29885]
[1743315504100,0.693,1834.1,1833.6,5.7078]
[1743315504305,1.78336,1834.3,1834.0,3.2078]
[1743315504492,1.76854354,1834.3,1834.1,4.9527]
[1743315504698,1.372,1834.2,1834.1,3.52]
[1743315505501,1.09075,1834.1,1834.0,3.2078]
[1743315505701,1.83345,1834.1,1834.0,3.518]
[1743315508409,0.7427,1834.1,1834.0,3.518]
[1743315508710,0.7427,1834.1,1834.0,7.81661]
[1743315508908,2.2034,1834.1,1834.0,7.81661]
[1743315512512,2.2034,1834.1,1834.0,3.518]
[1743315513113,2.2034,1834.1,1834.0,4.60881]
[1743315513713,2.2034,1834.1,1834.0,7.81661]
[1743315514222,0.68605525,1834.3,1834.1,1.09075]
[1743315514223,1.77672525,1834.3,1834.1,1.09075]
[1743315514418,1.5029,1834.2,1834.1,1.83095]
[1743315514919,1.5029,1834.2,1834.1,0.7402]
[1743315515118,1.5029,1834.2,1834.1,2.2037]
[1743315515419,0.00817171,1834.3,1834.1,2.2037]
[1743315515718,0.00817171,1834.3,1834.2,5.76199]
[1743315516413,0.00817171,1834.3,1834.2,4.6713]
[1743315516620,1.48367171,1834.3,1834.2,4.6713]
[1743315516820,1.48367171,1834.3,1834.2,5.76199]
[1743315517117,1.48367171,1834.3,1834.2,4.6713]
[1743315517519,2.57430171,1834.3,1834.2,3.2078]
[1743315517715,3.25960171,1834.3,1834.2,6.7218]
[1743315518920,3.25960171,1834.3,1834.2,3.2078]
[1743315519122,3.25960171,1834.3,1834.2,6.7228]
[1743315519515,3.25960171,1834.3,1834.2,3.2078]
[1743315519718,3.25960171,1834.3,1834.2,6.7218]
[1743315522023,1.09075,1834.1,1834.0,3.513]
[1743315522618,2.56545,1834.1,1834.0,3.513]
[1743315525825,1.09087,1833.9,1833.8,3.2078]
[1743315526025,1.09087,1833.9,1833.8,3.19298354]
[1743315526422,3.30787,1833.9,1833.8,3.19298354]
[1743315527528,2.217,1833.9,1833.8,5.68741354]
[1743315527827,2.217,1833.9,1833.8,4.59648354]
[1743315528224,3.30787,1833.9,1833.8,4.59648354]
[1743315528428,3.30787,1833.9,1833.8,6.70498354]
[1743315528728,2.217,1833.9,1833.8,6.70498354]
[1743315529721,2.217,1833.9,1833.8,8.14048354]
[1743315531223,3.30787,1833.9,1833.8,8.14048354]
[1743315532332,3.30787,1833.9,1833.8,6.70498354]
[1743315533125,3.30787,1833.9,1833.8,8.16438354]
[1743315534733,2.56227,1833.9,1833.8,8.90268354]
[1743315534935,1.4714,1833.9,1833.8,8.90268354]
[1743315535125,2.56227,1833.9,1833.8,8.90268354]
[1743315535828,1.4714,1833.9,1833.8,8.90268354]
[1743315536532,1.4714,1833.9,1833.8,9.99361354]
[1743315537232,1.4714,1833.9,1833.8,8.90268354]
[1743315538033,1.4714,1833.9,1833.8,9.99361354]
[1743315538334,1.4714,1833.9,1833.8,8.90268354]
[1743315538732,1.4714,1833.9,1833.8,9.99361354]
[1743315538933,2.54934,1834.2,1833.9,1.09084]
[1743315539237,1.4005,1834.1,1834.0,3.2078]
[1743315539440,1.38568354,1834.1,1834.0,4.6756]
[1743315542031,1.38568354,1834.1,1834.0,5.76641]
[1743315542235,1.38568354,1834.1,1833.8,3.2078]
[1743315542432,1.38568354,1834.1,1833.8,6.69798354]
[1743315542632,1.09087,1833.9,1833.8,6.69798354]
[1743315544242,1.09087,1833.9,1833.8,6.7128]
[1743315544540,1.09085,1834.0,1833.8,6.7128]
[1743315544739,1.385,1833.9,1833.8,8.1077]
[1743315544942,1.09085,1834.0,1833.8,8.1077]
[1743315545141,1.09087,1833.9,1833.8,8.1077]
[1743315547442,1.09077,1834.1,1833.8,8.1077]
[1743315547638,1.09077,1834.1,1833.9,1.5002]
[1743315547837,1.4586,1834.2,1833.9,3.31506]
[1743315548045,1.09077,1834.1,1834.0,0.682]
[1743315548242,1.09077,1834.1,1834.0,2.1822]
[1743315549941,2.54933,1834.2,1834.0,2.1822]
[1743315550142,1.81753,1834.2,1834.1,1.4323]
[1743315550345,1.81753,1834.2,1834.1,4.9413]
[1743315550744,0.00817171,1834.3,1834.1,8.1491]
[1743315551053,0.00817171,1834.3,1834.2,2.52299]
[1743315551347,0.00817171,1834.3,1834.1,7.80753]
[1743315551650,0.00817171,1834.3,1834.2,1.4323]
[1743315553646,0.00817171,1834.3,1834.2,2.52299]
[1743315561152,0.00817171,1834.3,1834.2,3.24949]
[1743315562046,1.4423,1834.5,1834.4,1.09058]
[1743315562252,1.4423,1834.5,1834.4,7.80238]
[1743315562453,1.09037,1834.8,1834.6,1.09045]
[1743315562753,1.09037,1834.8,1834.7,3.504]
[1743315563256,1.09037,1834.8,1834.7,4.8865]
[1743315564157,1.09037,1834.8,1834.7,3.504]
[1743315569450,1.0904,1834.7,1834.6,3.50617171]
[1743315569652,1.0904,1834.7,1834.6,0.00817171]
[1743315569959,1.0904,1834.7,1834.6,3.50617171]
[1743315573764,8.43386,1834.7,1834.2,3.2078]
[1743315574060,1.09058,1834.4,1834.3,3.499]
[1743315589160,1.09058,1834.4,1834.3,4.1986]
[1743315589865,1.09063,1834.3,1834.2,0.00817171]
[1743315590065,2.52203,1834.3,1834.2,0.00817171]
[1743315590474,3.96913,1834.3,1834.2,0.00817171]
[1743315592265,1.09081,1834.0,1833.9,2.1062]
[1743315592465,1.09081,1834.0,1833.9,5.57838354]
[1743315592664,1.4314,1834.2,1833.9,9.87703354]
[1743315592869,1.09068,1834.3,1834.0,3.18207]
[1743315593172,1.09068,1834.3,1834.1,1.4071]
[1743315593376,1.09068,1834.3,1834.2,3.489]
[1743315595276,1.09068,1834.3,1834.2,4.8961]
[1743315595666,1.09068,1834.3,1834.2,5.6393]
[1743315601583,1.09063,1834.3,1834.2,5.6393]
[1743315604987,1.09061,1834.4,1834.2,6.72999]
[1743315605184,1.09061,1834.4,1834.3,5.3959]
[1743315605388,1.09058,1834.4,1834.3,5.3959]
[1743315610190,1.09054,1834.5,1834.3,6.48651]
[1743315610391,1.09054,1834.5,1834.4,1.3803]
[1743315611088,3.2078,1834.6,1834.2,0.7432]
[1743315611285,1.09069,1834.2,1834.1,4.7112]
[1743315611485,1.09069,1834.2,1834.1,6.6868]
[1743315611788,1.09069,1834.2,1834.1,3.2078]
[1743315612092,1.09069,1834.2,1834.1,6.6868]
[1743315612790,1.09069,1834.2,1834.1,3.2078]
[1743315612989,1.09069,1834.2,1834.1,6.6858]
[1743315616293,2.52475,1834.3,1834.1,8.7796]
[1743315616592,2.52475,1834.3,1834.2,1.3745]
[1743315628396,3.2078,1834.8,1834.2,1.3745]
[1743315628597,2.2203,1834.7,1834.5,1.09048]
[1743315628803,2.5622,1834.7,1834.6,5.6333]
[1743315629103,1.4718,1834.7,1834.6,5.6333]
[1743315629502,2.5622,1834.7,1834.6,5.6333]
[1743315631299,1.09052,1834.5,1834.4,3.2078]
[1743315631601,2.72594,1834.8,1834.0,1.09893171]
[1743315631602,3.88176,1834.6,1834.5,3.475]
[1743315638803,1.09052,1834.5,1834.4,3.471]
[1743315639003,2.50922,1834.5,1834.4,3.471]
[1743315643206,2.72645,1834.4,1834.0,0.00817171]
[1743315643512,1.09075,1834.1,1834.0,0.00817171]
[1743315643713,1.09075,1834.1,1834.0,3.47917171]
[1743315643907,1.09075,1834.1,1834.0,0.00817171]
[1743315644313,4.29855,1834.1,1834.0,0.00817171]
[1743315644516,1.09093,1833.8,1833.7,51.7849]
[1743315644717,1.09093,1833.8,1833.7,55.24608354]
[1743315645010,1.09099,1833.7,1833.6,3.2078]
[1743315645210,1.09099,1833.7,1833.6,3.478]
[1743315646014,1.78089,1833.7,1833.6,3.478]
[1743315646314,1.78089,1833.7,1833.6,4.9422]
[1743315649007,1.78089,1833.7,1833.6,3.478]
[1743315650522,1.09111,1833.5,1833.4,1.4112]
[1743315650815,1.09111,1833.5,1833.4,4.8872]
[1743315651615,1.83081,1833.5,1833.4,4.8872]
[1743315652319,1.3782,1833.6,1833.4,4.8872]
[1743315652320,1.3782,1833.6,1833.4,5.97835]
[1743315652616,0.74787171,1833.8,1833.5,4.6102]
[1743315652818,1.09915171,1833.8,1833.6,2.0936]
[1743315653017,1.09915171,1833.8,1833.7,4.8814]
[1743315654913,1.81935171,1833.8,1833.7,1.4024]
[1743315655121,1.09099,1833.7,1833.6,3.484]
[1743315655319,3.27639,1833.7,1833.6,3.484]
[1743315656819,0.00817171,1833.8,1833.6,3.484]
[1743315657020,1.09913171,1833.8,1833.7,2.1428]
[1743315662523,0.00817171,1833.8,1833.7,5.3506]
[1743315662732,0.00817171,1833.8,1833.7,6.44159]
[1743315663326,0.00817171,1833.8,1833.7,5.3506]
[1743315663521,1.09910171,1833.8,1833.7,5.3506]
[1743315664926,0.00817171,1833.8,1833.7,5.3506]
[1743315665128,0.00817171,1833.8,1833.7,6.44159]
[1743315665426,1.09910171,1833.8,1833.7,5.3506]
[1743315667935,1.09910171,1833.8,1833.7,8.8366]
[1743315674627,0.00817171,1833.8,1833.7,9.92759]
[1743315676140,1.09910171,1833.8,1833.7,9.3822]
[1743315676436,1.09910171,1833.8,1833.7,9.92759]
[1743315676638,0.00817171,1833.8,1833.7,9.92759]
[1743315679239,1.09910171,1833.8,1833.7,9.3822]
[1743315679442,1.09910171,1833.8,1833.7,8.8366]
[1743315679633,0.00817171,1833.8,1833.7,9.92759]
[1743315679833,1.49757171,1833.8,1833.7,9.92759]
[1743315680235,2.58850171,1833.8,1833.7,8.8366]
[1743315680541,1.49757171,1833.8,1833.7,9.91959]
[1743315682937,0.00817171,1833.8,1833.7,9.91959]
[1743315690146,1.4253,1834.0,1833.9,1.09087]
[1743315690342,1.4253,1834.0,1833.9,4.29867]
[1743315690753,1.4253,1834.0,1833.9,4.99627]
[1743315692758,0.00817171,1834.1,1834.0,1.09081]
[1743315692954,0.70955525,1834.2,1834.1,1.09075]
[1743315693158,0.70955525,1834.2,1834.1,4.29855]
[1743315693461,2.12845525,1834.2,1834.1,5.71475]
[1743315693850,1.4189,1834.2,1834.1,5.71475]
[1743315694047,0.00817171,1834.3,1834.2,1.09069]
[1743315694256,1.42707171,1834.3,1834.2,4.8892]
[1743315694451,1.42707171,1834.3,1834.2,5.97989]
[1743315695258,1.42707171,1834.3,1834.2,6.71969]
[1743315696254,1.4584,1834.6,1834.5,1.09052]
[1743315696460,1.4584,1834.6,1834.5,4.56452]
[1743315696659,2.8139,1834.6,1834.5,4.56452]
[1743315696863,2.8139,1834.6,1834.5,5.96062]
[1743315702167,2.0886,1834.6,1834.5,5.96062]
[1743315702870,2.0886,1834.6,1834.5,6.70792]
[1743315703575,24.35131936,1835.1,1834.5,5.6174]
[1743315703769,1.4621,1835.0,1834.9,4.29806]
[1743315704076,1.4621,1835.0,1834.9,6.6808]
[1743315704077,2.55232,1835.0,1834.9,6.6808]
[1743315704769,2.55232,1835.0,1834.9,3.473]
[1743315705766,1.4621,1835.0,1834.9,4.56328]
[1743315706860,2.8603,1835.0,1834.9,5.94818]
[1743315708671,2.1076,1835.0,1834.9,5.94818]
[1743315708971,2.1076,1835.0,1834.9,6.63978]
[1743315709575,3.93812,1835.6,1835.3,1.09001]
[1743315709772,1.4485,1835.5,1835.4,3.472]
[1743315709972,2.53842,1835.5,1835.4,3.472]
[1743315710370,1.4485,1835.5,1835.4,4.56198]
[1743315710775,1.4485,1835.5,1835.4,6.05968]
[1743315712177,0.53855855,1835.6,1835.5,1.08992]
[1743315712480,0.53855855,1835.6,1835.5,6.37762]
[1743315714167,0.53855855,1835.6,1835.5,5.69002]
[1743315716281,1.95085855,1835.6,1835.5,5.69002]
[1743315718876,0.00817171,1835.6,1835.5,5.69002]
[1743315720785,1.36987171,1835.6,1835.5,5.69002]
[1743315721681,2.45973171,1835.6,1835.5,4.8723]
[1743315721986,2.45973171,1835.6,1835.5,3.48]
[1743315724689,2.45973171,1835.6,1835.5,3.479]
[1743315727786,1.36987171,1835.6,1835.3,4.5969]
[1743315727982,3.32802,1835.5,1835.4,3.478]
[1743315728186,1.08998,1835.4,1835.3,3.2078]
[1743315728386,3.29208,1835.4,1835.3,6.6858]
[1743315731289,3.29208,1835.4,1835.3,8.1525]
[1743315734283,3.29208,1835.4,1835.3,4.6745]
[1743315734491,1.0901,1835.2,1835.1,3.2078]
[1743315734796,1.0901,1835.2,1835.1,6.6828]
[1743315734999,1.09022,1835.0,1834.9,1.3575]
[1743315735186,1.09028,1834.9,1834.8,1.36567171]
[1743315735390,2.59208,1834.9,1834.8,4.84367171]
[1743315735692,2.59208,1834.9,1834.8,3.48617171]
[1743315747299,1.5018,1834.9,1834.5,3.9382]
[1743315747505,1.09046,1834.6,1834.5,3.472]
[1743315747706,3.2078,1834.7,1834.4,3.473]
[1743315747908,0.7265,1834.5,1834.3,3.475]
[1743315748098,3.29638,1834.4,1834.3,3.475]
[1743315751708,3.29638,1834.4,1834.3,4.8867]
[1743315752106,1.09058,1834.4,1834.3,4.8867]
[1743315752503,2.46078,1834.4,1834.3,4.8867]
[1743315756412,1.09058,1834.4,1834.3,4.8867]
[1743315756605,1.09871171,1834.5,1834.3,4.8867]
[1743315756803,1.09869171,1834.5,1834.4,2.8701]
[1743315757910,2.58529171,1834.5,1834.4,2.8701]
[1743315758614,1.09869171,1834.5,1834.4,2.8701]
[1743315758811,0.00817171,1834.5,1834.4,2.8701]
[1743315760106,0.00817171,1834.5,1834.4,6.0779]
[1743315761511,0.00817171,1834.5,1834.4,7.16848]
[1743315762702,0.00817171,1834.5,1834.4,6.0779]
[1743315766310,0.00817171,1834.5,1834.4,2.8701]
[1743315766613,0.00817171,1834.5,1834.4,6.0779]
[1743315768011,0.00817171,1834.5,1834.4,7.16848]
[1743315772718,1.09034,1834.8,1834.6,1.09041]
[1743315772918,1.09034,1834.8,1834.7,6.3455]
[1743315776628,0.00817171,1834.9,1834.7,6.3455]
[1743315776925,0.00817171,1834.9,1834.8,2.55934]
[1743315777223,1.09845171,1834.9,1834.8,1.469]
[1743315781129,2.56715171,1834.9,1834.8,1.469]
[1743315784332,1.47687171,1834.9,1834.8,2.55934]
[1743315784533,2.56715171,1834.9,1834.8,1.469]
[1743315788335,0.00817171,1834.9,1834.8,2.55934]
[1743315789035,0.00817171,1834.9,1834.8,5.76714]
[1743315789242,1.43037171,1834.9,1834.8,5.76714]
[1743315790041,1.43037171,1834.9,1834.8,3.2078]
[1743315790042,2.52065171,1834.9,1834.8,3.2078]
[1743315790242,3.27015171,1834.9,1834.8,3.2078]
[1743315790440,1.09046,1834.6,1834.5,53.5758]
[1743315790642,1.09044,1834.7,1834.5,57.0418]
[1743315790945,1.3742,1834.6,1834.5,59.58272]
[1743315791248,1.3742,1834.6,1834.5,58.13232]
[1743315791447,1.3742,1834.6,1834.5,57.0418]
[1743315791948,1.3742,1834.6,1834.5,58.13232]
[1743315792741,1.81757,1834.8,1834.6,1.09042]
[1743315793044,3.19177,1834.8,1834.6,1.09042]
[1743315793237,0.00817171,1834.9,1834.8,1.09034]
[1743315793436,0.00817171,1834.9,1834.8,4.55734]
[1743315793843,1.47547171,1834.9,1834.8,3.467]
[1743315794845,1.47547171,1834.9,1834.8,4.55734]
[1743315798752,1.47547171,1834.9,1834.8,5.26594]
[1743315799542,2.56575171,1834.9,1834.8,3.467]
[1743315800650,1.09034,1834.8,1834.6,1.09044]
[1743315800953,3.96754,1834.8,1834.7,3.47]
[1743315806552,1.0904,1834.7,1834.6,1.4946]
[1743315806856,1.0904,1834.7,1834.6,4.9626]
[1743315806857,2.4867,1834.7,1834.6,4.9626]
[1743315809653,2.4867,1834.7,1834.6,8.1704]
[1743315811559,2.4867,1834.7,1834.6,6.6758]
[1743315811760,2.4867,1834.7,1834.6,3.2078]
[1743315811961,1.09046,1834.6,1834.5,50.368]
[1743315812260,2.56666,1834.6,1834.5,53.833]
[1743315813258,2.56666,1834.6,1834.5,55.1959]
[1743315813759,2.56666,1834.6,1834.5,51.7309]
[1743315813957,2.56666,1834.6,1834.5,53.835]
[1743315816851,2.56666,1834.6,1834.5,55.2867]
[1743315817762,2.56666,1834.6,1834.5,55.9964]
[1743315822270,2.56666,1834.6,1834.5,53.835]
[1743315822454,2.56666,1834.6,1834.5,3.467]
[1743315822660,2.56666,1834.6,1834.5,4.9061]
[1743315843670,1.09063,1834.3,1834.2,3.46417171]
[1743315843876,1.09081,1834.0,1833.9,0.6977]
[1743315844074,1.09081,1834.0,1833.9,3.458]
[1743315847282,1.09081,1834.0,1833.9,4.8976]
[1743315847475,2.72613,1834.7,1834.0,1.09079]
[1743315847476,2.72615,1834.6,1834.0,1.09079]
[1743315847781,1.09071,1834.2,1834.0,2.9061]
[1743315847979,1.09071,1834.2,1834.1,1.4396]
[1743315848580,2.1094,1834.3,1834.1,3.466]
[1743315848884,1.09069,1834.2,1834.1,3.466]
[1743315849084,2.55689,1834.2,1834.1,3.466]
[1743315850874,2.55689,1834.2,1834.1,4.1469]
[1743315851383,2.55689,1834.2,1834.1,5.5488]
[1743315853693,1.09067,1834.3,1834.1,5.5488]
[1743315853894,2.48067,1834.3,1834.2,1.3616]
[1743315855887,3.22217,1834.3,1834.2,4.8316]
[1743315857994,1.09063,1834.4,1834.2,4.8316]
[1743315858289,1.4395,1834.5,1834.3,5.3218]
[1743315858495,2.53005,1834.5,1834.4,2.1116]
[1743315858894,1.83969,1834.6,1834.4,2.1116]
[1743315859095,3.27919,1834.6,1834.5,4.8615]
[1743315870196,3.27919,1834.6,1834.5,3.472]
[1743315870597,1.09052,1834.5,1834.4,2.1916]
[1743315870896,3.15252,1834.5,1834.4,4.9365]
[1743315871102,1.09063,1834.3,1834.2,2.2172]
[1743315871398,1.09075,1834.1,1834.0,50.378]
[1743315871605,1.09075,1834.1,1834.0,53.849]
[1743315872689,1.09075,1834.1,1834.0,55.3185]
[1743315872889,2.44865,1834.1,1834.0,55.3185]
[1743315875602,2.44865,1834.1,1834.0,50.378]
[1743315875804,2.44865,1834.1,1834.0,53.855]
[1743315877809,2.44865,1834.1,1834.0,3.477]
[1743315880898,1.09081,1834.0,1833.9,1.4087]
[1743315881205,3.23791,1834.0,1833.9,4.87188354]
[1743315885113,3.23791,1834.0,1833.9,3.478]
[1743315885810,3.23791,1834.0,1833.9,4.896]
[1743315887512,3.23791,1834.0,1833.9,3.478]
[1743315888506,3.23791,1834.0,1833.9,4.8539]
[1743315889606,3.23791,1834.0,1833.9,1.3759]
[1743315899311,1.09087,1833.9,1833.8,0.00817171]
[1743315899513,6.13246813,1833.9,1832.9,3.2078]
[1743315899720,1.09147,1832.9,1832.8,1.79066531]
[1743315899914,1.09153,1832.8,1832.7,0.6794]
[1743315900213,0.7514,1833.1,1832.7,3.8872]
[1743315900412,1.09153,1832.8,1832.7,3.8872]
[1743315900614,1.09153,1832.8,1832.7,3.89537171]
[1743315900818,1.09153,1832.8,1832.7,5.28497171]
[1743315901919,1.09153,1832.8,1832.7,2.07717171]
[1743315904421,1.09153,1832.8,1832.7,5.57817171]
[1743315904620,1.09153,1832.8,1832.7,0.00817171]
[1743315904818,1.09171,1832.5,1832.4,1.4528]
[1743315905323,1.09182,1832.3,1832.2,3.503]
[1743315905521,1.09182,1832.3,1832.2,4.9558]
[1743315906916,1.3799,1832.5,1832.2,4.9558]
[1743315907112,1.3799,1832.5,1832.3,4.6347]
[1743315907113,1.09177,1832.4,1832.3,4.6347]
[1743315907313,1.09177,1832.4,1832.3,4.9339]
[1743315907519,1.09175,1832.5,1832.3,8.1417]
[1743315907721,1.09168,1832.6,1832.4,1.4269]
[1743315907910,1.09168,1832.6,1832.5,0.7371]
[1743315908314,1.09168,1832.6,1832.5,2.164]
[1743315908518,1.09165,1832.6,1832.5,5.3718]
[1743315908719,1.09156,1832.8,1832.5,5.3718]
[1743315908920,1.09156,1832.8,1832.7,3.2078]
[1743315909322,1.09159,1832.7,1832.6,3.509]
[1743315909524,1.09165,1832.6,1832.5,3.9449]
[1743315909726,1.09165,1832.6,1832.5,7.4559]
[1743315909927,1.09163,1832.7,1832.5,7.4559]
[1743315910331,1.09163,1832.7,1832.5,8.5476]
[1743315910529,1.09163,1832.7,1832.5,7.4559]
[1743315910730,1.09163,1832.7,1832.5,8.54758]
[1743315912127,1.09156,1832.8,1832.5,7.4559]
[1743315912326,2.4958,1832.9,1832.7,3.2078]
[1743315912631,2.4958,1832.9,1832.8,4.2322]
[1743315915928,1.09142,1833.0,1832.8,5.32373]
[1743315916321,1.09142,1833.0,1832.9,0.7217]